Cogmind - Beta 16 @@@ ROGUE MODE // 2026.01.02 @ 21:58:02 Player: champi Result: Destroyed by G-50 Soldier with Heavy Laser Performance ------------- Evolutions (2) 1000 Regions Visited (3) 600 Robots Destroyed (37) 185 Value Destroyed (932) 932 Prototype IDs (4) 80 Alien Tech Used (0) 0 Bonus (0) 0 TOTAL SCORE: 2797 Bonus ------- None Cogmind --------- Core Integrity 0/550 Matter 300/300 Energy 100/100 System Corruption 0% Temperature Cool (18) Movement Core (100) Ox1 Location -8/Materials Parts ------- > --- POWER (1) -------- (None) > --- PROPULSION (3) --- (None) > --- UTILITY (5) ------ Machine Analyzer Improved Signal Interpreter > --- WEAPON (2) ------- Improved Datajack Heavy Mace > --- INVENTORY (5) ---- Machine Analyzer Improved Signal Interpreter Improved Terrain Scanner System Shield Peak State ------------ > --- POWER ------------ Improved Ion Engine > --- PROPULSION ------- Airjet Airjet Airjet > --- UTILITY ---------- Machine Analyzer Improved Signal Interpreter Improved Terrain Scanner System Shield System Shield > --- WEAPON ----------- Improved Assault Rifle Improved Datajack > --- INVENTORY -------- Airjet Machine Analyzer Light Armor Plating System Shield Heavy Mace [Rating: 33] Favorites ----------- Power Ion Engine Engine Ion Engine Propulsion Light Treads Treads Light Treads Hover Unit Airjet Flight Unit Cesium-ion Thruster Utility Small Storage Unit Device Seismic Detector Storage Small Storage Unit Processor Improved Signal Interpreter Hackware System Shield Protection Light Armor Plating Weapon Small Laser Energy Gun Small Laser Energy Cannon Advanced Beam Cannon Ballistic Gun Improved Assault Rifle Ballistic Cannon Improved Light Cannon Impact Weapon Heavy Mace Special Melee Weapon Improved Datajack Build | -11 -10 -9 -8 ------- Run | Yrd Mat Mat Mat Slots Evolved 4 | . . 2 2 Power . | . . . . Propulsion 1 | . . . 1 Utility 3 | . . 2 1 Weapon . | . . . . Parts Attached 42 | 6 10 20 6 Power 3 | 1 . 2 . Engine 3 | 1 . 2 . Core . | . . . . Reactor . | . . . . Propulsion 11 | 2 1 7 1 Treads 4 | 2 1 1 . Leg . | . . . . Wheel . | . . . . Hover 4 | . . 4 . Flight 3 | . . 2 1 Utility 17 | 1 6 7 3 Device 5 | . 3 1 1 Storage 2 | 1 1 . . Processor 3 | . . 2 1 Hackware 2 | . . 2 . Protection 5 | . 2 2 1 Artifact . | . . . . Weapon 11 | 2 3 4 2 Energy Gun 4 | 2 1 1 . Energy Cannon 2 | . 2 . . Ballistic Gun 1 | . . 1 . Ballistic Cannon 2 | . . 2 . Launcher . | . . . . Special Weapon . | . . . . Impact Weapon 1 | . . . 1 Slashing Weapon . | . . . . Piercing Weapon . | . . . . Special Melee Weapon 1 | . . . 1 Unidentified Prototypes 4 | . 1 3 . Parts Lost 14 | . 1 3 10 Power 2 | . . 1 1 Propulsion 5 | . . . 5 Utility 7 | . 1 2 4 Weapon . | . . . . Highest Loss Streak 4 | . 1 3 4 To Critical Strikes . | . . . . Average Backups 5 | 2 6 5 4 Power . | . 1 . . Propulsion . | . . 1 . Utility 2 | . 3 . 3 Weapon 1 | 1 1 2 . Tool/Special . | . . . . Unused Backups 11 | . 3 4 4 Power . | . . . . Propulsion . | . . . . Utility 6 | . 1 1 4 Weapon 5 | . 2 3 . Tool/Special . | . . . . Average Slot Usage (%) 91 | . 99 92 75 Engine 11 | . 14 10 5 Treads 15 | . 28 5 . Hover 7 | . . 15 13 Device 10 | . 12 16 . Storage 7 | . 14 1 . Processor 6 | . . 8 17 Hackware 4 | . . 2 14 Protection 4 | . . 10 6 Energy Gun 12 | . 24 . . Energy Cannon 5 | . 3 15 . Ballistic Gun 1 | . . 2 3 Impact Weapon 1 | . . . 5 Special Melee Weapon 1 | . . . 6 Peak Build Rating 33 | 6 14 24 33 Average Rating 14 | 4 7 20 24 On Entrance 10 | . 6 14 22 Avg Prop Armor Cover (%) 5 | . . 5 . Naked Turns . | . . . . Heaviest Build 23 | 12 21 23 14 Greatest Support 40 | 40 40 40 24 Greatest Overweight (x) 3 | 1 . 3 2 Average Overweight (x) . | . . . . Largest Inventory Capacity 20 | 8 20 8 5 Average Capacity 6 | 7 8 5 5 Most Carried 8 | 6 8 7 5 Average Carried 5 | 2 6 5 4 Final Capacity 8 | 8 8 5 5 Final Carried 8 | 2 8 5 4 Class Distribution -------------------- 81% | Mutant 18% | Hacker-Mutant Dominant Class ---------------- Mutant | -10/Materials Mutant | -9/Materials Hacker-Mutant | -8/Materials Resources | -11 -10 -9 -8 ----------- Run | Yrd Mat Mat Mat Matter Collected 779 | 232 133 244 170 Remotely . | . . . . Salvage Created 1107 | . 483 369 255 Parts 53 | . 21 26 6 Haulers Intercepted 2 | . 1 1 . Recyclers Shooed . | . . . . Parts Field Recycled . | . . . . Retrieved Matter . | . . . . Parts Self-Destructed . | . . . . Prevented . | . . . . Parts Restored . | . . . . Kills | -11 -10 -9 -8 ------- Run | Yrd Mat Mat Mat Combat Hostiles Destroyed 31 | . 13 10 8 Melee 4 | . . . 4 Guns 13 | . 13 . . Cannons 10 | . . 10 . Classes Destroyed 8 | . 4 3 1 Hauler 2 | . 1 1 . Mechanic 1 | . 1 . . Operator 1 | . . 1 . Watcher 2 | . . 2 . Swarmer 13 | . 6 4 3 Grunt 12 | . 7 3 2 Sentry 5 | . . 3 2 Hunter 1 | . . . 1 Best Kill Streak 4 | . 3 4 3 Combat Bots Only 4 | . 3 4 3 Max Kills in Single Turn 1 | . 1 1 1 Gunslinging . | . . . . Exploded . | . . . . Melee 1 | . . . 1 Uniques/NPCs Destroyed . | . . . . Combat | -11 -10 -9 -8 -------- Run | Yrd Mat Mat Mat Hostile Shots Fired 251 | . 46 86 119 Missed 83 | . 12 32 39 Hits 168 | . 34 54 80 Projectile 168 | . 34 54 80 AOE 1 | . . . 1 Critical Strikes 4 | . . 3 1 Damage Taken 2101 | . 352 654 1095 Core 727 | . 49 115 563 Absorbed by Shields . | . . . . Regen/Repaired (Parts) 150 | . . 19 131 Core Remaining (%) 83 | 100 80 71 . Volleys Fired 87 | . 51 36 . Largest 2 | . 2 2 . Hottest 136 | . 90 136 . Shots Fired 169 | . 99 70 . Gun 101 | . 99 2 . Cannon 68 | . . 68 . Launcher . | . . . . Special . | . . . . Kinetic 18 | . . 18 . Thermal 151 | . 99 52 . Explosive . | . . . . Electromagnetic . | . . . . Robot Hit Streak 9 | . 9 8 . Robot Miss Streak 3 | . 3 3 . Penetration Max . | . . . . Secondary Targets . | . . . . Shots Hit Robots 124 | . 62 43 19 Core Hits 43 | . 26 14 3 Critical Kills 1 | . . . 1 Critical Parts Destroyed 3 | . . . 3 Critical Strikes 11 | . 5 2 4 Burn 5 | . 5 . . Blast 2 | . . 2 . Smash 4 | . . . 4 Melee Attacks 33 | . . . 33 Impact 33 | . . . 33 Slashing . | . . . . Piercing . | . . . . Sneak Attacks . | . . . . Combat Hostiles . | . . . . Follow-up Attacks . | . . . . Damage Inflicted 2436 | . 731 908 797 Guns 753 | . 728 25 . Cannons 883 | . . 883 . Explosions . | . . . . Melee 797 | . . . 797 Ramming 3 | . 3 . . Kinetic 231 | . . 231 . Thermal 1405 | . 728 677 . Explosive . | . . . . Electromagnetic . | . . . . Impact 797 | . . . 797 Slashing . | . . . . Piercing . | . . . . Highest Corruption 1 | . 1 . . Average Corruption 1 | . 1 . . Corruption Purged . | . . . . Corruption Blocked . | . . . . Effects 1 | . 1 . . Energy Discharges 1 | . 1 . . Overload Shots . | . . . . Overflow Damage 175 | . . . 175 Projectiles . | . . . . Explosions . | . . . . Melee 175 | . . . 175 Knockbacks 4 | . . 2 2 Impact 2 | . . . 2 Kinetic 2 | . . 2 . Secondary . | . . . . Self-Inflicted Damage . | . . . . Shots . | . . . . Rammed 1 | . 1 . . Targets Rammed 1 | . 1 . . Kicked . | . . . . Crushed . | . . . . Highest Temperature 395 | . 294 395 10 Average Temperature 97 | . 83 124 10 Received Heat Transfer 546 | . 153 246 147 Effects 2 | . . 2 . Shutdowns 1 | . . 1 . Short Circuit 1 | . . 1 . Siege Activations . | . . . . Martial Activations . | . . . . Shielding Activations . | . . . . Robots Disrupted . | . . . . Combat Hostiles . | . . . . Robots Corrupted 4 | . . . 4 Combat Hostiles 4 | . . . 4 Parts Fried 4 | . . . 4 Impact Corruptions 10 | . . . 10 Robots Melted . | . . . . Combat Hostiles . | . . . . Parts Melted 6 | . 4 2 . Heat Transferred 3477 | . 2256 1221 . Parts Sabotaged . | . . . . Parts Stolen . | . . . . Parts Stripped . | . . . . Power Chain Reactions . | . . . . Alert | -11 -10 -9 -8 ------- Run | Yrd Mat Mat Mat Maximum Alert Level . | . . . . Low Security (%) 100 | 100 100 100 100 Level 1 . | . . . . Level 2 . | . . . . Level 3 . | . . . . Level 4 . | . . . . Level 5 . | . . . . High Security . | . . . . Max Security . | . . . . Peak Influence 123 | . 70 123 106 Initial 24 | . . . 24 Average 26 | . 15 55 21 Influence Increases 994 | . 332 384 278 Destroy 0b10 Robot/C 620 | . 260 200 160 Destroy 0b10 Robot/NC 30 | . 10 20 . Destroy Leader 158 | . 62 46 50 Successful Hack 30 | . . 27 3 Disable Machine 15 | . . 15 . Destroy Structure 6 | . . 1 5 Partial Spotted 15 | . . 15 . Lose Combat Pursuer 120 | . . 60 60 Influence Decreases 967 | . 332 325 310 Entered New Map 35 | . . . 35 Time Decay 638 | . 264 199 175 Lost Part 140 | . 10 30 100 Purge Threat 154 | . 58 96 . Squads Dispatched 8 | . 3 1 4 Investigation 3 | . 1 1 1 Extermination . | . . . . Reinforcement 3 | . 2 . 1 Assault 2 | . . . 2 Garrison . | . . . . Intercept . | . . . . Searches Triggered . | . . . . Construction Impeded . | . . . . Haulers Reinforced . | . . . . Active Scanning Responses . | . . . . Cargo Convoy Interrupts . | . . . . Stealth | -11 -10 -9 -8 --------- Run | Yrd Mat Mat Mat Distress Signals 3 | . 2 . 1 Communications Jammed . | . . . . Distress Signals . | . . . . Times Spotted 53 | . 16 20 17 Peak Tracking Total 7 | . 3 7 6 Tactical Retreats 6 | . . 3 3 Traps | -11 -10 -9 -8 ------- Run | Yrd Mat Mat Mat Traps Triggered 2 | . 1 . 1 Indirectly . | . . . . Trap Hack Attempts . | . . . . Triggered . | . . . . Disarmed . | . . . . Reprogrammed . | . . . . Reused . | . . . . Traps Extracted . | . . . . Installed . | . . . . Triggered . | . . . . Machines | -11 -10 -9 -8 ---------- Run | Yrd Mat Mat Mat Machines Disabled 1 | . . 1 . Max in Single Turn 1 | . . 1 . Garrison Access 1 | . . . 1 Machines Repaired . | . . . . Machines Dismantled . | . . . . Machines Sabotaged . | . . . . Overloaded Fab Kills . | . . . . Hacking | -11 -10 -9 -8 --------- Run | Yrd Mat Mat Mat Machines Accessed 12 | . 3 7 2 Terminals 7 | . 2 4 1 Fabricators . | . . . . Repair Stations 2 | . . 1 1 Recycling Units 2 | . 1 1 . Scanalyzers 1 | . . 1 . Garrison Access . | . . . . Total Hacks 53 | . 6 29 18 Successful 32 | . 3 19 10 Failed 21 | . 3 10 8 Catastrophic . | . . . . Database Lockouts . | . . . . Manual 7 | . 4 2 1 Terminals 21 | . 5 12 4 Fabricators . | . . . . Repair Stations 17 | . . 3 14 Recycling Units 5 | . 1 4 . Scanalyzers 10 | . . 10 . Garrison Access . | . . . . Terminal Hacks 11 | . 2 7 2 Record 1 | . 1 . . Emergency Access Points 1 | . . . 1 Alert Level 2 | . . 1 1 Unreport Threat 3 | . 1 2 . Dispatch Records 1 | . . 1 . Hauler Manifests 1 | . . 1 . Zone Layout 2 | . . 2 . Fabricator Hacks . | . . . . Repair Station Hacks 10 | . . 2 8 Scan Component 5 | . . 1 4 Repair 5 | . . 1 4 Recycling Unit Hacks 3 | . 1 2 . Report Inventory 2 | . 1 1 . Retrieve Components 1 | . . 1 . Scanalyzer 8 | . . 8 . Insert Component 2 | . . 2 . Analyze 2 | . . 2 . Retrieve Study 4 | . . 4 . Garrison Access Hacks . | . . . . Unauthorized Hacks . | . . . . Terminals . | . . . . Fabricators . | . . . . Repair Stations . | . . . . Recycling Units . | . . . . Scanalyzers . | . . . . Garrison Access . | . . . . Data Cores Recovered 1 | . . 1 . Used . | . . . . Hacking Detections 9 | . 2 6 1 Full Trace Events 2 | . 1 1 . Feedback Events . | . . . . Feedback Blocked . | . . . . Robot Schematics Acquired . | . . . . Robots Built . | . . . . Authchips . | . . . . Time . | . . . . Total Robot Build Rating . | . . . . Part Schematics Acquired 2 | . . 2 . Parts Built . | . . . . Authchips . | . . . . Time . | . . . . Total Part Build Rating . | . . . . Part Studies Acquired 1 | . . 1 . Parts Repaired 5 | . . 1 4 Time 193 | . . 38 155 Parts Recycled . | . . . . Recycled Matter . | . . . . Retrieved Matter . | . . . . Retrieved Components 4 | . . 4 . Parts Scanalyzed 2 | . . 2 . Part Schematics Acquired 2 | . . 2 . Parts Damaged . | . . . . Bothacking | -11 -10 -9 -8 ------------ Run | Yrd Mat Mat Mat Used RIF Installer . | . . . . Robots Hacked . | . . . . Non-combat . | . . . . Combat . | . . . . Robot Hacks Applied . | . . . . Relay Couplers Released 2 | . . . 2 Machine Destruction 2 | . . . 2 Fabnet Peak Effective % . | . . . . Robots Rewired . | . . . . Allies Hacked . | . . . . Hacks Repelled . | . . . . Allies | -11 -10 -9 -8 -------- Run | Yrd Mat Mat Mat Total Allies . | . . . . Largest Group . | . . . . Highest-Rated Group . | . . . . Highest-Rated Ally . | . . . . Total Orders . | . . . . Ally Attacks . | . . . . Total Damage . | . . . . Kills . | . . . . Allies Corrupted . | . . . . Allies Melted . | . . . . Intel | -11 -10 -9 -8 ------- Run | Yrd Mat Mat Mat Active Infowar (turns) 1789 | . 1017 177 595 Optics 60 | . . 60 . Sensors 507 | . 507 . . Terrain 32 | . . . 32 Seismic 669 | . 510 159 . Machine Analysis 595 | . . . 595 Robot Analysis Total . | . . . . Derelict Logs Recovered . | . . . . Drone Launches . | . . . . Drone Recoveries . | . . . . Exploration | -11 -10 -9 -8 ------------- Run | Yrd Mat Mat Mat Turns Passed 2582 | 87 1234 660 601 Spaces Moved 1545 | 56 570 550 369 Core 103 | 24 . . 79 Treads 695 | 32 570 93 . Legs . | . . . . Wheels . | . . . . Hover 691 | . . 455 236 Flight 56 | . . 2 54 Fastest Speed 50 | 50 160 56 52 Average Speed 112 | 132 160 75 89 Slowest Speed 250 | 160 160 250 150 Overloaded Moves . | . . . . Propulsion Burnouts . | . . . . Robots Hopped . | . . . . Potential Cave-ins . | . . . . Cave-ins Triggered . | . . . . Exploration Rate (%) 41 | 4 83 48 31 Regions Visited 3 Branch Regions . Pre-discovered Areas . | . . . . Known Exits Taken 1 | . . 1 . Unknown Exits Taken 2 | 1 1 . . Scrap Searched . | . . . . Spaces Dug 5 | . . . 5 Terrain Destroyed 5 | . . . 5 Melee 5 | . . . 5 Projectile . | . . . . AOE . | . . . . Terrain Rammed . | . . . . Walls Destroyed . | . . . . Machines Disabled . | . . . . Actions | -11 -10 -9 -8 --------- Run | Yrd Mat Mat Mat Total 2165 | 69 793 725 578 Wait 368 | . 139 75 154 Move 1542 | 55 569 549 369 Hop . | . . . . Pick Up 44 | 8 13 17 6 Fast Attach 17 | . 4 8 5 Attach 19 | 6 3 6 4 Detach 1 | . . 1 . Swap 19 | . 4 10 5 Drop 34 | . 9 23 2 Fire 87 | . 51 36 . Melee 33 | . . . 33 Ram . | . . . . Kick . | . . . . Crush 1 | . 1 . . Escape Stasis . | . . . . Rewire . | . . . . Trap . | . . . . Miscellaneous . | . . . . Route ------- -11/Scrapyard -10/Materials (discovered 3 exits: *Mat x2 / [*Min]) -9/Materials (discovered 3 exits: *Mat / *Min x2) -8/Materials History --------- Turn | Location | Event 29 | -11/Scrapyard | Discovered new exit (range 14) 88 | -11/Scrapyard | Entered Materials 309 | -10/Materials | Build established: Mutant 702 | -10/Materials | Discovered new exit (range 8) 816 | -10/Materials | Discovered new exit (range 16) 1298 | -10/Materials | Discovered new exit (range 15) 1322 | -10/Materials | Entered another Materials area 1322 | -9/Materials | Evolved 2 slots: Utility x2 1593 | -9/Materials | Discovered new exit (range 8) 1597 | -9/Materials | Identified exit to Mines 1644 | -9/Materials | Repaired Reaction Control System 1847 | -9/Materials | Lost 3 parts (1p2u) 1879 | -9/Materials | Discovered exit to Mines (range 9) 1974 | -9/Materials | Discovered new exit (range 15) 1982 | -9/Materials | Identified exit to Materials 1982 | -9/Materials | Entered another Materials area 1982 | -8/Materials | Evolved 2 slots: Propulsion x1, Utility x1 2035 | -8/Materials | Repaired Airjet 2091 | -8/Materials | Repaired Broken Airjet 2118 | -8/Materials | Repaired Lgt. Armor Plating 2157 | -8/Materials | Repaired Airjet 2223 | -8/Materials | Build established: Hacker-Mutant 2347 | -8/Materials | Lost 4 parts (3n1u) 2357 | -8/Materials | Core integrity fell below 50% 2400 | -8/Materials | Lost 3 parts (1p1n1u) 2578 | -8/Materials | Core integrity fell below 20% 2583 | -8/Materials | Destroyed by G-50 Soldier with Heavy Laser Last Messages --------------- multiple assault carriers. Garrison Access disabled. Relay Coupler [Grunt] tumbles out of Garrison Access. Relay Coupler [Hunter] tumbles out of Garrison Access. Processing Tank disabled. G-47 Trooper suffers critical hit (Smash). Destroyed Aluminum Leg. Destroyed Imp. Heat Sink. G-47 Trooper system corrupted by crushing effect. G-47 Trooper destroyed. T-07 Excavator is excavating. U-05 Engineer lays Concrete. K-01 Serf collects debris. U-05 Engineer lays Concrete. K-01 Serf collects debris. U-05 Engineer builds a Wall. System Shield destroyed. Map ----- +----------------------------------------------------+ | ? #?????""""???????????????????????????? | | #????????????????????????????????????? | | #????????????????????????????????????? | | """ #????????????????????????????????????? | | """ #????????????????????????????????????? | | == """ #??####??????????????????????????????? | | = #?? #??????????????????????????????? | | = #### #???????????????????????????????? | | #???????????????????????????????? | | #### #???????????????? ??????????????? | | #######/#### #??????????????? #??????????????? | | #?# # #?????????????? #??????????????? | | #?# """"" # #???????????? #??????????????? | | ### """"" # ############# #??????????????? | | + """"" # #??????????????? | | # """"" + #??????????????? | | # """"" # #??????????????? | | + """""?### g g """"" #??????????????? | | #### """""???# """"" #??????????????? | | #??# ??# kk "" #??????????????? | | #############?#####;;g a #??????????????? | | # % #?????# ; #??????????????? | | # #??#### ; #??????????????? | | + """ """ #??#u ; #??????????????? | | ### """ """ #??# ;% #??????????????? | | #?# """ """ #??# ; @ #??????????????? | | #?# #??# ; #??????????????? | | #?# ] #??# ; #??????????????? | | ########+######??# ; #??????????????? | | ! #??????# #??????????????? | | #??????# t# #??????????????? | | !!! ! ##???### # #??????????????? | | !!! #####"###### ### #??????????????? | | !!! # "#??? #??# #??????????????? | | # ##???=]]???? #??????????????? | | # """ #????=]]????? #??????????????? | | " """ # """ #????###????? #??????????????? | | "" """ # """ #????????????? #??????????????? | | " """ # #??????????????????????????????? | | +[""" #??????????????????????????????? | | # """ #??????????????????????????????? | | ####+## # """ #??????????????????????????????? | | ## ## #??????????????????????????????? | | """ ## ## #??????""??????????????????????? | | """ ## ## #??????"T??????????????????????? | | """ ## ######"#???#??""??????????????????????? | | ## ##% ##?????????????????????????????? | | /// # # "#?????????????????????????????? | | /// # # =##?????????????????????????????? | | // # " + #??????????????????????????????? | +----------------------------------------------------+ Best States ------------- Heat Dissipation 42 Energy Generation 14 Energy Capacity 265 Matter Stores 300 Matter Capacity 300 Sight Range 18 Robot Scan Range 14 Terrain Scan Range 16 Terrain Scan Density 10 Armor Coverage 150 Evasion (%) 61 Recoil Reduction 2 Defensive Hacking 20 Item Schematics ----------------- Airjet | -9/Materials | Scanalyzed System Shield | -9/Materials | Scanalyzed Robot Schematics ------------------ None Fabricated ------------ Nothing Repaired ---------- Reaction Control System | 36% | -9/Materials Airjet | 5% | -8/Materials Airjet | 55% | -8/Materials | Broken Lgt. Armor Plating | 32% | -8/Materials Airjet | 65% | -8/Materials Studied --------- Imp. Ion Engine | -9/Materials | Hacked Alien Tech Used ----------------- None Achievements -------------- None Challenges ------------ None Game ------ Seed InsulationHellfireLattice Manual? 0 Play Time 00:48:54 Cumulative 6.8 hours Start 2026.01.02 @ 20:04:13 End 2026.01.02 @ 21:58:02 Sessions 1 Manual Loads 0 Difficulty Rogue Special Mode None Game No. 8 Rogue 8 Adventurer 0 Explorer 0 Win Type - Total 0 Types 0/0/0/0/0/0/0/0/0/0 Lore% 3 Gallery% 7 Achievement% 8 Wizard Run 0 Options --------- Layout 1 ASCII 0 Keyboard 0 Movement Mouse Keybinds 0 Fullscreen 1 Font 24/Smallcaps Map View 50x35 Zoom Use 0% Tactical HUD 0 Map Filters NONE Filters NONE Steam 1 RUN: 820e58a6-47f2-4868-b2fb-5be8b9e743b0